[Event "Vugar Gashimov Memorial Blitz 2024"]
[Site "Shusha"]
[Date "2024.09.28"]
[Round "7.2"]
[White "Mamedov, Rauf"]
[Black "Abdusattorov, Nodirbek"]
[Result "0-1"]
[ECO "C50"]
[WhiteElo "2637"]
[BlackElo "2766"]
[Annotator "TA"]
[PlyCount "123"]
[EventDate "2024.09.28"]
[EventType "tourn"]
[EventCountry "AZE"]
[SourceTitle "playchess.com"]
[Source "ChessBase"]
[SourceQuality "1"]
[TimeControl "180+2"]

{[%evp 58,123,-127,-136,-54,-47,-48,-54,-56,-96,-91,-132,-75,-55,-52,-119,-118,-132,-160,-172,-108,-182,-116,-253,-237,-256,-244,-347,-316,-309,-253,-325,-315,-412,-412,-485,-266,-487,-483,-493,-460,-525,-509,-526,-518,-514,-504,-486,-510,-792,-781,-894,-887,-808,-776,-714,-410,-1292,-970,-1893,-1119,-1114,-277,-1032,-732,-732,-729,-5808]} 1. e4 {[%emt 0:00:00]} e5 {[%emt 0:00:00]} 2. Nf3 {[%emt 0:00:01]} Nc6 {[%emt 0:00:01]} 3. d4 {[%emt 0:00:01]} exd4 {[%emt 0:00:05]} 4. Bc4 {[%emt 0:00:01]} d6 {[%emt 0:00:04]} 5. Nxd4 {[%emt 0:00:08]} Nf6 {[%emt 0:00:02]} 6. Nc3 {[%emt 0:00:01]} Be7 {[%emt 0:00:01]} 7. O-O {[%emt 0:00:05]} O-O {[%emt 0:00:03]} 8. Re1 {[%emt 0:00:02]} Ne5 {[%emt 0:00:11]} 9. Bf1 {[%emt 0:00:17] C50: Hungarian Defence and Giuoco Pianissimo.} Re8 {[%emt 0:00:02]} 10. h3 {[%emt 0:00:04]} Bf8 {[%emt 0:00:02]} 11. a4 {[%emt 0:00:10]} c6 {[%emt 0:00:07]} 12. a5 {[%emt 0:00:04]} Ng6 $146 {[%emt 0:00:20]} ({Predecessor:} 12... Bd7 13. Bg5 h6 14. Bh4 Ng6 15. Bg3 b5 16. axb6 axb6 17. Rxa8 Qxa8 18. Nb3 Qb8 19. f4 {0-1 Bulmaga,I (2416)-Relange,E (2462) Bastia op 2023 (5)}) 13. a6 {[%emt 0:00:11]} Qc7 {[%emt 0:00:18]} 14. Bg5 {[%emt 0:00:07]} Nd7 {[%emt 0:00:01]} 15. Nb3 {[%emt 0:00:16]} b5 {[%emt 0:00:09]} 16. h4 {[%emt 0:00:54]} h6 {[%emt 0:00:07]} 17. h5 {[%emt 0:00:01]} Nge5 {[%emt 0:00:02]} 18. Bf4 {[%emt 0:00:08]} Nc5 {[%emt 0:00:02]} 19. Nxc5 {[%emt 0:00:07]} dxc5 {[%emt 0:00:01]} 20. Bg3 {[%emt 0:00:01]} c4 {[%emt 0:00:02]} 21. Qd4 {[%emt 0:00:06]} Qe7 {[%emt 0:00:26]} 22. Be2 {[%emt 0:00:12]} Qg5 {[%emt 0:00:14]} 23. Rad1 {[%emt 0:00:08]} Ng4 {[%emt 0:00:10]} 24. e5 {[%emt 0:00:05]} Nxe5 {[%emt 0:00:26]} 25. Ne4 {[%emt 0:00:13]} Qe7 {[%emt 0:00:00]} 26. Qc3 {[%emt 0:00:14]} b4 {[%emt 0:00:10]} 27. Qd4 {[%emt 0:00:11]} Bf5 {[%emt 0:00:05]} 28. Nd6 {[%emt 0:00:07]} Qxd6 {[%emt 0:00:01]} 29. Qxd6 {[%emt 0:00:00]} Bxd6 {[%emt 0:00:01]} 30. Rxd6 {[%emt 0:00:01] [#]} Nd3 {[%emt 0:00:06]} (30... Bxc2 $6 31. Rc1 Be4 (31... Bd3 32. Bxd3 cxd3 33. Bxe5 $15) 32. f3 $11) (30... b3 $1 $17 {[%cal Rb3c2][%mdl 512]} 31. Rc1 (31. Bxe5 Rxe5) 31... bxc2) 31. cxd3 $15 {[%emt 0:00:04]} cxd3 {[%emt 0:00:01]} 32. f3 {[%emt 0:00:02]} dxe2 {[%emt 0:00:08]} 33. Rxc6 {[%emt 0:00:01]} ({Much weaker is} 33. Kf2 c5 34. Rxe2 Rxe2+ 35. Kxe2 Re8+ 36. Kd1 Rc8) 33... Bd3 {[%emt 0:00:03]} 34. Kf2 {[%emt 0:00:02]} Re7 {[%emt 0:00:08]} (34... b3 $142 35. Rc3 Red8 (35... Bxa6 $2 36. Bf4 $19)) 35. Rd6 $17 {[%emt 0:00:01]} Bb5 {[%emt 0:00:04]} 36. Bf4 {[%emt 0:00:02]} (36. Rc1 $1 $15) 36... Rc8 $17 {[%emt 0:00:04]} 37. Bd2 {[%emt 0:00:02]} b3 {[%emt 0:00:02]} 38. g4 {[%emt 0:00:05]} Re6 {[%emt 0:00:01]} (38... Rc2 $19 39. Bc3 Kh7) 39. Rd4 {[%emt 0:00:02]} (39. Rd5 $17 Bc4 (39... Bxa6 $2 40. Rd7 $19) 40. Rd4) 39... Bxa6 {[%emt 0:00:01]} (39... Rc2 $1 $19 40. Bc3 Rb6 (40... Bxa6 41. Rd7 $17) (40... Rxa6 $2 41. Rb4 $19)) 40. Rb4 {[%emt 0:00:01]} (40. Rd7 $17) 40... Rc2 $19 {[%emt 0:00:04]} 41. Bc3 {[%emt 0:00:01]} Rb6 {[%emt 0:00:03]} 42. Rxb6 {[%emt 0:00:03]} (42. Rd4 {is a better defense.}) 42... axb6 $19 {[%emt 0:00:00]} 43. Ke3 {[%emt 0:00:02]} f6 {[%emt 0:00:01]} 44. f4 {[%emt 0:00:01]} Kf7 {[%emt 0:00:01]} 45. Kd4 {[%emt 0:00:01]} Bc8 {[%emt 0:00:02]} 46. f5 {[%emt 0:00:01]} Bb7 {[%emt 0:00:01]} (46... Ba6 $142 47. Rb1 b5) 47. Ke3 $2 {[%emt 0:00:01]} (47. Kc4 {was the only chance.} Ba6+ 48. Kxb3) 47... Ba6 $19 {[%emt 0:00:02]} 48. Kd4 {[%emt 0:00:01]} Ke7 {[%emt 0:00:01]} 49. Ra1 {[%emt 0:00:03]} Bb5 {[%emt 0:00:04]} 50. Bb4+ {[%emt 0:00:03]} Kd7 {[%emt 0:00:00]} 51. Bc3 {[%emt 0:00:02]} Kc6 {[%emt 0:00:02]} 52. Re1 {[%emt 0:00:01]} Ba6 {[%emt 0:00:04]} 53. Ra1 {[%emt 0:00:02]} (53. Ke3 $142) 53... Kb5 $19 {[%emt 0:00:04]} 54. Re1 {[%emt 0:00:02]} Bb7 {[%emt 0:00:07]} 55. Kd3 {[%emt 0:00:02]} Bf3 {[%emt 0:00:02]} 56. Rg1 {[%emt 0:00:07]} Kc6 {[%emt 0:00:07]} 57. Bd2 {[%emt 0:00:02]} (57. Kc4 $142 Bd5+ (57... Bxg4 $2 58. Kxb3 Bxf5 59. Kc4 $19) 58. Kd4) 57... Rxb2 $19 {[%emt 0:00:05]} 58. Ke3 {[%emt 0:00:01]} Bd5 {[%emt 0:00:02]} 59. Kxe2 {[%emt 0:00:01]} Rc2 $2 {[%emt 0:00:01]} (59... Be4 {[%cal Ob2d2] Threatens to win with ...Rxd2+!} 60. Ke3 Rxd2 61. Kxe4 b2) 60. Rb1 $2 {[%emt 0:00:02]} (60. Rc1) 60... Bc4+ {[%emt 0:00:02]} 61. Ke3 {[%emt 0:00:01]} b2 {[%emt 0:00:01]} 62. Kd4 {[%emt 0:00:08]} 0-1

[Event "Vugar Gashimov Memorial Blitz 2024"]
[Site "Shusha"]
[Date "2024.09.28"]
[Round "7.3"]
[White "Aravindh, Chithambaram VR."]
[Black "Artemiev, Vladislav"]
[Result "0-1"]
[ECO "D05"]
[WhiteElo "2698"]
[BlackElo "2701"]
[Annotator "TA"]
[PlyCount "70"]
[EventDate "2024.09.28"]
[EventType "tourn"]
[EventCountry "AZE"]
[SourceTitle "playchess.com"]
[Source "ChessBase"]
[SourceQuality "1"]
[TimeControl "180+2"]

{[%evp 12,70,10,8,41,20,16,0,0,0,0,0,0,-22,-12,-39,-17,-27,-15,-62,-58,-65,-39,-47,-48,-46,-44,-35,-54,-50,-48,-197,-200,-192,-206,-206,-211,-236,-223,-292,-280,-379,-387,-379,-378,-416,-410,-384,-399,-527,-527,-634,-595,-1528,-766,-2294,-2293,-1412,-1366,-29993,-1562]} 1. d4 {[%emt 0:00:01]} Nf6 {[%emt 0:00:01]} 2. Nf3 {[%emt 0:00:02]} e6 {[%emt 0:00:02]} 3. e3 {[%emt 0:00:02]} c5 {[%emt 0:00:09]} 4. Bd3 {[%emt 0:00:01]} d5 {[%emt 0:00:02]} 5. b3 {[%emt 0:00:02]} Nc6 {[%emt 0:00:11]} 6. O-O {[%emt 0:00:03]} cxd4 {[%emt 0:00:46]} 7. exd4 {[%emt 0:00:02]} Qc7 {[%emt 0:00:01]} 8. a3 {[%emt 0:00:13]} g6 {[%emt 0:00:01]} 9. Re1 {[%emt 0:00:16]} Bg7 {[%emt 0:00:01] The position is equal.} 10. Bb2 {[%emt 0:00:02]} O-O {[%emt 0:00:03]} 11. Nbd2 {[%emt 0:00:02]} b6 {[%emt 0:00:05]} 12. c4 {[%emt 0:00:09]} dxc4 {[%emt 0:00:06]} 13. bxc4 {[%emt 0:00:02]} Bb7 {[%emt 0:00:02]} 14. Rc1 $1 {[%emt 0:00:03][%cal Od4d5]} Rfd8 {[%emt 0:00:04]} 15. Bf1 {[%emt 0:00:09]} (15. Qe2 $11) 15... Ng4 $15 {[%emt 0:00:18]} 16. h3 {[%emt 0:00:23] [#]} Nxd4 $1 {[%emt 0:00:42] Black has more active pieces.} 17. Bxd4 {[%emt 0:00:04]} (17. hxg4 Nxf3+ 18. gxf3 Bxb2 $19) 17... Bxf3 $40 {[%emt 0:00:01][%mdl 128] Black mounts an attack.} 18. Nxf3 {[%emt 0:00:11]} Bxd4 $1 {[%emt 0:00:02]} 19. hxg4 {[%emt 0:00:24] [#]} Bxf2+ {[%emt 0:00:02]} 20. Kxf2 {[%emt 0:00:01]} Rxd1 {[%emt 0:00:05]} 21. Rexd1 {[%emt 0:00:04] [#] This move loses the game for White.} (21. Rcxd1 $15 Rd8 22. Rxd8+ Qxd8 23. g5) 21... Qc5+ $1 $19 {[%emt 0:00:07]} 22. Kg3 {[%emt 0:00:02]} Qxa3 {[%emt 0:00:01]} 23. c5 {[%emt 0:00:08]} bxc5 {[%emt 0:00:04]} 24. Rb1 {[%emt 0:00:08]} Qa4 {[%emt 0:00:23]} 25. g5 {[%emt 0:00:35]} Qc6 {[%emt 0:00:02] Dodges Rd6} 26. Bb5 {[%emt 0:00:35]} Qc7+ {[%emt 0:00:01]} 27. Kf2 {[%emt 0:00:03]} Rb8 {[%emt 0:00:03]} 28. Bc4 {[%emt 0:00:07]} Rb4 {[%emt 0:00:05]} 29. Rbc1 {[%emt 0:00:02]} Rb2+ {[%emt 0:00:01]} 30. Be2 {[%emt 0:00:02]} c4 {[%emt 0:00:02]} 31. Rd4 {[%emt 0:00:03]} c3 {[%emt 0:00:03] ...Qb6 is the strong threat.} 32. Ke3 {[%emt 0:00:02]} Qb6 {[%emt 0:00:05] Threatens to win with ...Qc5.} 33. Kd3 {[%emt 0:00:02]} Qb5+ {[%emt 0:00:01]} 34. Rc4 {[%emt 0:00:02] [#]} Rxe2 $1 {[%emt 0:00:02][%mdl 512]} 35. Nd4 {[%emt 0:00:02] [#]} (35. Kxe2 Qxc4+) 35... Re3+ $3 {[%emt 0:00:03][%mdl 512] Weighted Error Value: White=1.04/Black=0.35.  Mistake:       	White=2     	---        Inaccurate:     	White=6     	Black=1      OK:         	White=4     	Black=16     Best:        	White=2     	Black=2      Strong:       	White=1     	Black=2      Brilliant:      	---       	Black=1} 0-1

[Event "Vugar Gashimov Memorial Blitz 2024"]
[Site "Shusha"]
[Date "2024.09.28"]
[Round "7.4"]
[White "Suleymanli, Aydin"]
[Black "Nepomniachtchi, Ian"]
[Result "1-0"]
[ECO "B90"]
[WhiteElo "2632"]
[BlackElo "2755"]
[Annotator "TA"]
[PlyCount "63"]
[EventDate "2024.09.28"]
[EventType "tourn"]
[EventCountry "AZE"]
[SourceTitle "playchess.com"]
[Source "ChessBase"]
[SourceQuality "1"]
[TimeControl "180+2"]

{[%evp 12,63,2,9,14,4,4,12,9,0,2,0,0,0,0,-5,0,0,2,0,0,0,0,0,0,0,12,0,0,0,2,-16,-10,-25,19,24,30,33,60,58,443,437,437,446,845,840,29978,29975,29973,5317,5331,5221,29983,29984]} 1. e4 {[%emt 0:00:01]} c5 {[%emt 0:00:00]} 2. Nf3 {[%emt 0:00:01][%cal Bg1f3,Bf3d4,Bd4e2,Be2f4][%mdl 32]} d6 {[%emt 0:00:01]} 3. d4 {[%emt 0:00:02]} cxd4 {[%emt 0:00:01]} 4. Nxd4 {[%emt 0:00:01]} Nf6 {[%emt 0:00:01]} 5. Nc3 {[%emt 0:00:01]} a6 {[%emt 0:00:00]} 6. Bd3 {[%emt 0:00:01]} e5 {[%emt 0:00:02]} 7. Nde2 {[%emt 0:00:01]} Nc6 {[%emt 0:00:01]} 8. O-O {[%emt 0:00:07]} Be6 {[%emt 0:00:01] Wards off Nd5} 9. f4 {[%emt 0:00:16]} exf4 {[%emt 0:00:01] The position is equal.} 10. Nxf4 {[%emt 0:00:02]} Ne5 {[%emt 0:00:01]} 11. Be3 {[%emt 0:00:12]} Be7 {[%emt 0:00:01]} 12. h3 {[%emt 0:00:01]} O-O {[%emt 0:00:01]} 13. Kh1 {[%emt 0:00:03]} Qd7 {[%emt 0:00:01]} 14. Bd4 {[%emt 0:00:07]} Rae8 {[%emt 0:00:01]} 15. Qd2 {[%emt 0:00:05]} Bd8 {[%emt 0:00:06]} 16. Rae1 {[%emt 0:00:06]} Nc6 {[%emt 0:00:03]} 17. Bf2 {[%emt 0:00:07]} Ne5 {[%emt 0:00:11]} 18. Bd4 {[%emt 0:00:08]} b5 {[%emt 0:00:04]} 19. a3 {[%emt 0:00:03]} Qc6 {[%emt 0:00:05]} 20. Qf2 {[%emt 0:00:26]} Qb7 {[%emt 0:00:17]} 21. Qg3 {[%emt 0:00:04]} Bb6 {[%emt 0:00:15]} 22. Nxe6 {[%emt 0:00:22]} (22. Bxb6 {with more complications.} Qxb6 23. Rd1 Rc8 24. Nfe2) 22... fxe6 {[%emt 0:00:01]} (22... Rxe6 {simplifies} 23. Bxe5 dxe5 24. Rd1 Qe7) 23. Bxe5 {[%emt 0:00:11]} dxe5 {[%emt 0:00:01]} 24. Qxe5 {[%emt 0:00:05]} Bc7 {[%emt 0:00:01]} 25. Qg5 {[%emt 0:00:02]} h6 $2 {[%emt 0:00:03][%mdl 8192] Black cannot hold the game after this.} (25... Nd7 $14) 26. Qg6 $18 {[%emt 0:00:11][%cal Of1f6] aiming for Rxf6!} Be5 {[%emt 0:00:03] [#]} 27. Rxf6 $1 {[%emt 0:00:01]} Bxf6 {[%emt 0:00:38] Black is weak on the light squares} (27... Qe7 $142 28. Rff1 Rxf1+ 29. Rxf1 Rf8 30. Rxf8+ Kxf8) 28. e5 {[%emt 0:00:01]} Rd8 {[%emt 0:00:47]} 29. Qh7+ {[%emt 0:00:03]} Kf7 {[%emt 0:00:00][%cal Bg8f7,Bf7e7,Be7f6][%mdl 32]} 30. Bg6+ {[%emt 0:00:02]} (30. exf6 $142 Rg8 31. fxg7 Qc6 32. Qg6+ (32. Qxh6 Rxg7 33. Rf1+ Kg8 $18) 32... Ke7 33. Ne4 (33. Qxh6 Kd7 $18) 33... Rd5 34. Qf6+ (34. Qxh6 Kd8 $18) (34. Nf6 Rgd8 $18) 34... Kd7 35. Qf7+ (35. Qxh6 Kc8 $18) 35... Kc8 36. Qxg8+ Kc7 37. Qf7+ Rd7 38. Qf4+ (38. g8=Q Rxf7 39. Qxf7+ Kb6 40. Qf2+ Kc7 41. Nc5 h5 42. Qf7+ Kb6 43. Rxe6 Qxe6) 38... Kb7 39. g8=Q (39. g8=B Qc7 $18) (39. Nc5+ Qxc5 40. Be4+ Kb6 41. g8=Q Ka5 42. Qxe6 h5)) 30... Ke7 {[%emt 0:00:01]} 31. exf6+ {[%emt 0:00:01]} Kxf6 {[%emt 0:00:01]} 32. Ne4+ {[%emt 0:01:12] Weighted Error Value: White=0.03 (flawless) /Black=0.79.  Loses game:     	---       	Black=1      Mistake:       	---       	Black=1      Inaccurate:     	---       	Black=3      OK:         	White=6     	Black=11     Best:        	White=2     	---        Strong:       	White=1     	---} 1-0

[Event "Vugar Gashimov Memorial Blitz 2024"]
[Site "Shusha"]
[Date "2024.09.28"]
[Round "8.1"]
[White "Mamedyarov, Shakhriyar"]
[Black "Nepomniachtchi, Ian"]
[Result "0-1"]
[ECO "D79"]
[WhiteElo "2733"]
[BlackElo "2755"]
[Annotator "TA"]
[PlyCount "105"]
[EventDate "2024.09.28"]
[EventType "tourn"]
[EventCountry "AZE"]
[SourceTitle "playchess.com"]
[Source "ChessBase"]
[SourceQuality "1"]
[TimeControl "180+2"]

{[%evp 42,105,0,-53,0,-62,-1,-10,20,-19,0,-72,-47,-39,-52,-25,60,-53,-50,-71,-66,-221,-213,-214,-156,-150,-31,-53,0,0,0,0,0,0,0,0,0,0,0,0,0,0,0,0,0,0,0,0,0,0,0,-29974,-29975,-29976,-29977,-29977,-29978,-29978,-29979,-29979,-29980,-29980,-29980,-29981,-29982,-29982]} 1. Nf3 {[%emt 0:00:01]} c5 {[%emt 0:00:01]} 2. g3 {[%emt 0:00:04]} Nc6 {[%emt 0:00:01]} 3. Bg2 {[%emt 0:00:02]} g6 {[%emt 0:00:00]} 4. c3 {[%emt 0:00:09]} Bg7 {[%emt 0:00:03]} 5. d4 {[%emt 0:00:01]} cxd4 {[%emt 0:00:00]} 6. cxd4 {[%emt 0:00:00]} d5 {[%emt 0:00:01]} 7. O-O {[%emt 0:00:03]} Nf6 {[%emt 0:00:01]} 8. Nc3 {[%emt 0:00:04]} Ne4 {[%emt 0:00:04]} 9. Bf4 {[%emt 0:00:10]} Nxc3 {[%emt 0:00:05]} 10. bxc3 {[%emt 0:00:01]} O-O {[%emt 0:00:01]} 11. Ne5 {[%emt 0:00:07]} Nxe5 {[%emt 0:00:08] 11...Na5 is vanishing. D79: Fianchetto Grünfeld: Symmetrical Variation (6 0-0 c6 7 cxd5 cxd5).} 12. Bxe5 {[%emt 0:00:02]} Bxe5 {[%emt 0:00:01]} 13. dxe5 {[%emt 0:00:01]} Be6 {[%emt 0:00:01]} 14. Qd4 {[%emt 0:00:05]} Qa5 {[%emt 0:00:05]} 15. Rfd1 $146 {[%emt 0:00:12]} ({Predecessor:} 15. Qb4 Qc7 16. f4 Rac8 17. Rac1 Qc5+ 18. Kh1 Rc7 19. Qxc5 Rxc5 20. Rb1 b6 21. Rfd1 {0-1 Filewicz,P (2108)-Sieciechowicz,M (2438) POL-ch blitz 2018 (15)}) 15... Rfd8 {[%emt 0:00:00]} 16. Qb4 {[%emt 0:00:24]} Qc7 {[%emt 0:00:01]} 17. f4 {[%emt 0:00:02]} Rac8 {[%emt 0:00:02]} 18. Rd3 {[%emt 0:00:06]} b6 {[%emt 0:00:04]} 19. Rad1 {[%emt 0:00:40]} Kg7 {[%emt 0:00:06]} 20. a4 {[%emt 0:00:29]} a5 {[%emt 0:00:02]} 21. Qd4 {[%emt 0:00:12]} Qb8 {[%emt 0:00:12]} (21... Bf5 $17 22. e6+ f6) 22. R3d2 {[%emt 0:00:10]} (22. Rb1 $11) 22... Qc7 {[%emt 0:00:11]} (22... Rc5 $5 23. h3 Rdc8 $17) 23. Rd3 {[%emt 0:00:06]} Rd7 {[%emt 0:00:03]} (23... Bf5 $15 24. R3d2 Qxc3 25. Qxc3 Rxc3 26. Rxd5 Rxd5 27. Bxd5 Bd7) 24. h3 {[%emt 0:00:04]} h5 {[%emt 0:00:03]} 25. Kh2 {[%emt 0:00:01]} Qd8 {[%emt 0:00:04]} 26. Qe3 {[%emt 0:00:06]} (26. Qf2 $11) 26... Rc5 {[%emt 0:00:06]} (26... Rxc3 $5 27. Rxc3 d4 28. Rxd4 Rxd4 $17) 27. Bf3 {[%emt 0:00:03]} Bf5 {[%emt 0:00:19]} 28. Rd4 {[%emt 0:00:08]} e6 {[%emt 0:00:02]} (28... Qc8 $11 29. Rxd5 Rxc3 30. Qxb6 Rxd5 31. Rxd5 Rxf3 32. exf3 Qc2+ (32... Bxh3 $2 33. Rd8 $18) 33. Kg1 (33. Kh1 $2 Qe2 $19) 33... Qc1+ 34. Kf2 Qc2+ 35. Ke3 (35. Ke1 Bd3 $11) 35... Qc3+ 36. Kf2 Qc2+ (36... Bxh3 37. Qxa5 Qa1 38. Qe1 $11) 37. Ke3 (37. Ke1 Bd3 $11) 37... Qc1+ 38. Kf2 Bxh3) 29. Kg2 {[%emt 0:00:05]} (29. g4 $1 $14 Bc2 30. R1d2) 29... Rdc7 $15 {[%emt 0:00:05]} 30. Rc1 {[%emt 0:00:04]} Qc8 {[%emt 0:00:01]} 31. Rd2 $2 {[%emt 0:00:13]} (31. Qf2 $15 Rxc3 32. Rxc3 Rxc3 33. g4 hxg4 34. hxg4) 31... Rxc3 $19 {[%emt 0:00:18]} 32. Rxc3 {[%emt 0:00:01]} Rxc3 {[%emt 0:00:02]} 33. Qxb6 {[%emt 0:00:00]} Qc4 {[%emt 0:00:10]} (33... Rc1 $17 {Strongly threatening ...Ra1.} 34. Qd4 (34. Qxa5 $2 Ra1 $19) 34... Rc4) 34. Qd8 $1 $15 {[%emt 0:00:05]} Be4 {[%emt 0:00:01]} (34... Qxa4 35. Rb2 Rb3 36. Qf6+ Kg8 37. Qd8+ (37. Rxb3 Qxb3 38. g4 Bb1 $11) 37... Kh7 38. Rxb3 Qxb3 39. Qf6 $11) ({Black should play} 34... Qb4 $1 $15 35. Qf6+ Kg8 36. Qd8+ Kh7) 35. Qf6+ $11 {[%emt 0:00:02]} Kg8 {[%emt 0:00:01]} 36. Qd8+ {[%emt 0:00:01]} Kh7 {[%emt 0:00:00]} 37. Qe7 {[%emt 0:00:04]} Bxf3+ {[%emt 0:00:10]} (37... Qxa4 $2 {too greedy.} 38. Qxf7+ Kh8 39. Rb2 $18 (39. Qxe6 Rc2 $16)) 38. exf3 {[%emt 0:00:01]} Qc7 {[%emt 0:00:07]} (38... Qxa4 $2 {perishes.} 39. Qxf7+ Kh8 40. Qxg6 $18 (40. Qxe6 Rc2 $16)) 39. Qf6 $1 {[%emt 0:00:01]} Kg8 {[%emt 0:00:06]} 40. g4 {[%emt 0:00:02]} hxg4 {[%emt 0:00:32]} 41. hxg4 {[%emt 0:00:01]} Rc2 {[%emt 0:00:00]} 42. Rxc2 {[%emt 0:00:01]} Qxc2+ {[%emt 0:00:01]} 43. Kg3 {[%emt 0:00:01]} Qc8 {[%emt 0:00:09]} 44. f5 {[%emt 0:00:03]} exf5 {[%emt 0:00:02]} 45. gxf5 {[%emt 0:00:02]} Qxf5 {[%emt 0:00:04]} 46. Qxf5 $4 {[%emt 0:00:08][%mdl 8192]} (46. Qd8+ $11 Kg7 47. Qxd5) 46... gxf5 {[%emt 0:00:01]} 47. Kf2 {[%emt 0:00:01]} f6 {[%emt 0:00:01]} 48. exf6 {[%emt 0:00:04]} Kf7 {[%emt 0:00:00]} 49. Ke3 {[%emt 0:00:01]} Kxf6 {[%emt 0:00:03]} 50. f4 {[%emt 0:00:03]} Ke7 {[%emt 0:00:02]} 51. Kd3 {[%emt 0:00:02]} Kd7 {[%emt 0:00:01]} 52. Kc3 {[%emt 0:00:02]} Kc6 {[%emt 0:00:01]} 53. Kd4 {[%emt 0:00:07]} 0-1

[Event "Vugar Gashimov Memorial Blitz 2024"]
[Site "Shusha"]
[Date "2024.09.28"]
[Round "8.2"]
[White "Suleymanli, Aydin"]
[Black "Artemiev, Vladislav"]
[Result "1-0"]
[ECO "C77"]
[WhiteElo "2632"]
[BlackElo "2701"]
[Annotator "TA"]
[PlyCount "77"]
[EventDate "2024.09.28"]
[EventType "tourn"]
[EventCountry "AZE"]
[SourceTitle "playchess.com"]
[Source "ChessBase"]
[SourceQuality "1"]
[TimeControl "180+2"]

{[%evp 16,77,19,22,35,24,28,26,22,30,33,40,29,41,42,37,51,36,56,56,48,46,58,35,93,66,90,107,90,68,130,133,124,56,60,62,47,68,68,55,49,28,122,122,496,437,503,496,485,495,624,605,1199,1165,29978,29979,29979,29980,29980,29979,29993,29979,29998,29999]} 1. e4 {[%emt 0:00:01]} e5 {[%emt 0:00:01]} 2. Nf3 {[%emt 0:00:01]} Nc6 {[%emt 0:00:01]} 3. Bb5 {[%emt 0:00:01]} Nf6 {[%emt 0:00:02]} 4. d3 {[%emt 0:00:05]} d6 {[%emt 0:03:06]} 5. c3 {[%emt 0:00:06]} g6 {[%emt 0:00:00]} 6. O-O {[%emt 0:00:02]} Bg7 {[%emt 0:00:00]} 7. h3 {[%emt 0:00:02]} O-O {[%emt 0:00:00]} 8. Re1 {[%emt 0:00:02]} a6 {[%emt 0:00:00]} 9. Ba4 {[%emt 0:00:02]} b5 {[%emt 0:00:00]} 10. Bc2 {[%emt 0:00:00]} Re8 {[%emt 0:00:00]} 11. Nbd2 {[%emt 0:00:02]} Bb7 {[%emt 0:00:00] White has an edge.} 12. a4 {[%emt 0:00:02]} Nb8 {[%emt 0:00:00]} 13. b4 {[%emt 0:00:02]} c5 {[%emt 0:00:00]} 14. Nb3 {[%emt 0:00:02]} cxb4 {[%emt 0:00:00]} 15. cxb4 {[%emt 0:00:02]} Nc6 {[%emt 0:00:00]} 16. Bd2 {[%emt 0:00:02]} Qe7 {[%emt 0:00:00]} 17. axb5 {[%emt 0:00:02]} axb5 {[%emt 0:00:00]} 18. Na5 {[%emt 0:00:02]} Nxa5 {[%emt 0:00:00]} 19. bxa5 {[%emt 0:00:02]} d5 {[%emt 0:00:00]} ({Black should try} 19... Nd7 $14) 20. Qb1 $16 {[%emt 0:00:02]} Qd7 {[%emt 0:00:00]} 21. Qb2 {[%emt 0:01:53]} Nh5 {[%emt 0:00:08]} 22. Rab1 {[%emt 0:00:10] White is more active.} Bc6 {[%emt 0:00:13]} (22... dxe4 $14 23. dxe4 (23. Qxb5 $2 Bc6 $19) 23... Bc6) 23. exd5 {[%emt 0:00:21]} Bxd5 {[%emt 0:00:01]} 24. Qxb5 {[%emt 0:00:02]} (24. Nxe5 $16 Qd6 25. d4) 24... Bc6 $14 {[%emt 0:00:01]} 25. Qb4 {[%emt 0:00:01]} Bxf3 {[%emt 0:00:05]} 26. gxf3 {[%emt 0:00:01] [#] Ba4 would now be deadly.} (26. Ba4 $2 Bc6 27. Bxc6 Qxc6 $19) 26... Rec8 {[%emt 0:00:07]} (26... Qxh3 $2 27. Qg4 Nf4 28. Qxh3 (28. Bxf4 Qxg4+ 29. fxg4 Rec8 $18) 28... Nxh3+ 29. Kf1 $16) 27. Bb3 {[%emt 0:00:46][%cal Bc2b3,Bb3d5,Bd5b7][%mdl 32]} Qxd3 {[%emt 0:00:02][%cal Oa8b8]} 28. Be3 {[%emt 0:00:00]} Qf5 {[%emt 0:00:02]} (28... Nf4 $1 $11 {keeps the balance.}) 29. Bd5 $16 {[%emt 0:00:00]} Ra6 {[%emt 0:00:06][%mdl 8192] This move loses the game for Black.} (29... Bf8 $16 {is a better chance.} 30. Qa4 Bc5) 30. Bb7 $18 {[%emt 0:00:00][%csl LRa6,LRc8] This pair of bishops is nice.} Rb8 {[%emt 0:00:00]} 31. Qc5 {[%emt 0:00:00] Strongly threatening Qc7.} Bf8 {[%emt 0:00:05]} 32. Qc7 {[%emt 0:00:01]} (32. Bxa6 Rxb1 33. Rxb1 (33. Qc3 $2 Bb4 $19) 33... Bxc5 34. Rb8+ Kg7 (34... Bf8 35. Bf1 $11) 35. Bxc5 Qxf3 $15 (35... Qxh3 36. Bf1 $11)) 32... Rxb7 {[%emt 0:00:02]} 33. Rxb7 {[%emt 0:00:01] Hoping for Rb8.} ({Weaker is} 33. Qxb7 Rxa5 34. Qc7 Ra3 $14) 33... Qxf3 {[%emt 0:00:01]} 34. Rb8 {[%emt 0:00:06] Threatening mate with Qe7.} Qxh3 {[%emt 0:00:02] [#]} 35. Rxf8+ $1 {[%emt 0:00:04][%mdl 512] White mates.} Kxf8 {[%emt 0:00:02][%cal Bg8f8,Bf8e8,Be8e7,Be7f6][%mdl 32]} 36. Bh6+ {[%emt 0:00:00]} ({And not} 36. Qxe5 Qg4+ 37. Kf1 Qh3+ 38. Kg1 Qg4+ 39. Kh1 Qh3+ 40. Kg1 $11) 36... Ke8 {[%emt 0:00:03]} 37. Qb8+ {[%emt 0:00:04]} Ke7 {[%emt 0:00:01]} 38. Rxe5+ {[%emt 0:00:02]} Kf6 {[%emt 0:00:00]} 39. Qh8+ {[%emt 0:00:01] Weighted Error Value: White=0.05 (flawless) /Black=0.62.  Loses game:     	---       	Black=1      Mistake:       	White=1     	Black=3      Inaccurate:     	---       	Black=1      OK:         	White=16    	Black=10     Best:        	White=1     	Black=1} 1-0